Cogmind - Beta 14 *** ADVENTURER MODE // 2024.09.27 @ 20:51:35 Player: Ms. V3-11A Result: Destroyed by G-67 Veteran with Plasma Rifle Performance ------------- Evolutions (6) 3000 Regions Visited (20) 4000 Robots Destroyed (226) 1130 Value Destroyed (10035) 10035 Prototype IDs (216) 4320 Alien Tech Used (0) 0 Bonus (9192) 9192 TOTAL SCORE: 31677 Bonus ------- High Alert Combat Kills 1960 Follower Combat Kills 3081 Network Hubs Disabled 800 Met Data Miner 300 Used Data Conduit 3000 Built Enhanced Grunts 300 Friendly Fire -249 Cogmind --------- Core Integrity 0/1150 Matter 255/300 Energy 68/160 System Corruption 37% Temperature Cool (28) Movement Core (200) Ox3 Location -4/Upper Caves Parts ------- > --- POWER (2) -------- Light Nuclear Core > --- PROPULSION (3) --- (None) > --- UTILITY (11) ----- Makeshift Salvage Targeting Computer Improved Target Analyzer Graphene Brace > --- WEAPON (3) ------- Advanced Variable Charge Gun > --- INVENTORY (5) ---- Advanced Energy Well (500) Improved System Shield Improved System Shield Improved Component Analysis Suite Peak State ------------ > --- POWER ------------ Reinforced Fission Core Light Antimatter Reactor > --- PROPULSION ------- Enhanced Flexi-carbon Leg Myomer Leg Myomer Leg > --- UTILITY ---------- Advanced Heat Sink Advanced Heat Sink Advanced Heat Sink Large Storage Unit Advanced Targeting Computer Improved Transmission Jammer Centrium Medium Armor Plating Graphene Brace Improved Hacking Suite Improved Hacking Suite Improved System Shield > --- WEAPON ----------- Quantum Rifle Advanced KE Penetrator Enhanced Gauss Cannon > --- INVENTORY -------- Flexi-carbon Leg Flexi-carbon Leg Enhanced Flexi-carbon Leg Centrium Leg Advanced Cryofiber Web Large Storage Unit Advanced Energy Well High-capacity Matter Pod Advanced Trap Scanner Improved Transmission Jammer Improved System Shield Wave Gun Advanced Variable Charge Gun Hardcell Cannon [Rating: 120] Favorites ----------- Power Cooled Ion Engine Engine Cooled Ion Engine Power Core Reinforced Fission Core Reactor Light Antimatter Reactor Propulsion Enhanced Flexi-carbon Leg Leg Enhanced Flexi-carbon Leg Utility Advanced Heat Sink Device Advanced Heat Sink Storage Large Storage Unit Processor Advanced Targeting Computer Hackware Hacking Suite Protection Centrium Medium Armor Plating Weapon Phase Gun Energy Gun Phase Gun Energy Cannon Neutron Cannon Ballistic Gun Enhanced Autogun Ballistic Cannon Hardcell Cannon Launcher Advanced EMP Blaster Impact Weapon Powered Hammer Slashing Weapon Great Axe Build | -11 -10 -9 -8 -8 -8 -8 -6 -6 -6 -5 -5 -5 -5 -5 -5 -5 -5 -4 -4 -4 ------- Run | Yrd Mat Mat Mat Sto Rec Scr Fac Low Dat Pro Fac Was Fac Ext Cet Arc Hub Fac Upp Upp Slots Evolved 12 | . . 2 2 . . . 4 . . . 2 . . . . . . 2 . . Power 1 | . . . . . . . 1 . . . . . . . . . . . . . Propulsion 1 | . . 1 . . . . . . . . . . . . . . . . . . Utility 9 | . . 1 2 . . . 3 . . . 2 . . . . . . 1 . . Weapon 1 | . . . . . . . . . . . . . . . . . . 1 . . Parts Attached 267 | . 6 36 24 25 2 2 15 . 22 18 6 . 2 9 3 4 15 39 23 16 Power 34 | . . 5 3 3 . . 1 . 1 2 2 . . 5 1 1 1 5 3 1 Engine 11 | . . 5 . 3 . . . . 1 . 2 . . . . . . . . . Core 12 | . . . 3 . . . 1 . . . . . . 5 . . 1 1 . 1 Reactor 11 | . . . . . . . . . . 2 . . . . 1 1 . 4 3 . Propulsion 69 | . 2 14 8 5 . 2 5 . 4 2 . . . . 1 1 7 9 5 4 Treads . | . . . . . . . . . . . . . . . . . . . . . Leg 69 | . 2 14 8 5 . 2 5 . 4 2 . . . . 1 1 7 9 5 4 Wheel . | . . . . . . . . . . . . . . . . . . . . . Hover . | . . . . . . . . . . . . . . . . . . . . . Flight . | . . . . . . . . . . . . . . . . . . . . . Utility 88 | . 1 6 4 6 2 . 7 . 12 7 3 . 1 4 1 2 6 16 6 4 Device 48 | . 1 2 3 3 1 . 3 . 3 5 2 . 1 1 . . 5 12 5 1 Storage 8 | . . 1 . 1 . . . . 4 . . . . . . . . 1 . 1 Processor 7 | . . . . . 1 . 1 . 1 . 1 . . . . . . . 1 2 Hackware 7 | . . . . 1 . . 1 . 1 . . . . . . 2 . 2 . . Protection 18 | . . 3 1 1 . . 2 . 3 2 . . . 3 1 . 1 1 . . Artifact . | . . . . . . . . . . . . . . . . . . . . . Weapon 76 | . 3 11 9 11 . . 2 . 5 7 1 . 1 . . . 1 9 9 7 Energy Gun 34 | . 2 2 3 7 . . . . 1 4 . . 1 . . . . 6 5 3 Energy Cannon 3 | . . . . . . . . . 1 1 1 . . . . . . . . . Ballistic Gun 21 | . 1 7 5 2 . . 1 . 1 . . . . . . . 1 1 . 2 Ballistic Cannon 8 | . . . . . . . . . . . . . . . . . . 2 4 2 Launcher 7 | . . 2 1 2 . . 1 . 1 . . . . . . . . . . . Special Weapon . | . . . . . . . . . . . . . . . . . . . . . Impact Weapon 1 | . . . . . . . . . . 1 . . . . . . . . . . Slashing Weapon 2 | . . . . . . . . . 1 1 . . . . . . . . . . Piercing Weapon . | . . . . . . . . . . . . . . . . . . . . . Special Melee Weapon . | . . . . . . . . . . . . . . . . . . . . . Unidentified Prototypes 9 | . . 1 1 7 . . . . . . . . . . . . . . . . Corrupted Parts 19 | . . . . . . . . . 12 . . . . . 1 1 . . 4 1 System Corruption 77 | . . . . . . . . . 47 . . . . . 4 4 . . 19 3 Parts Lost 82 | . . 3 1 3 . . . . 3 8 . . 1 1 . . 12 15 13 22 Power 12 | . . 1 . . . . . . 1 1 . . 1 1 . . 2 2 1 2 Propulsion 12 | . . . . 1 . . . . . 1 . . . . . . 1 3 1 5 Utility 39 | . . 1 1 2 . . . . 2 5 . . . . . . 7 5 6 10 Weapon 19 | . . 1 . . . . . . . 1 . . . . . . 2 5 5 5 Highest Loss Streak 17 | . . 2 1 1 . . . . 3 5 . . 1 1 . . 7 10 4 17 To Critical Strikes 1 | . . 1 . . . . . . . . . . . . . . . . . . Average Slot Usage (%) 94 | . 98 96 95 93 96 100 93 100 88 78 92 100 99 99 100 100 98 91 91 70 Engine 5 | . 14 10 4 8 9 9 6 6 5 1 2 11 10 7 . . . . . . Core 1 | . . . 4 . . . . 6 1 . . . . 2 5 3 3 4 1 . Reactor 1 | . . . . . . . . . . 1 1 . . . 4 6 6 3 8 7 Leg 21 | . 28 32 26 26 27 27 20 20 19 20 17 17 17 17 17 17 16 14 14 10 Device 19 | . 12 10 23 21 22 18 15 13 4 7 23 23 23 23 29 29 28 23 25 19 Storage 7 | . 14 11 9 9 9 9 6 6 6 6 5 5 5 5 5 5 5 5 5 4 Processor 4 | . . . . . 1 9 10 13 16 8 11 11 11 10 5 5 5 5 5 7 Hackware 8 | . . . . 5 9 9 13 13 17 14 11 11 11 11 11 11 5 13 14 7 Protection 4 | . . 8 8 4 . . 6 6 4 4 5 5 5 5 5 5 10 2 . . Energy Gun 7 | . 24 9 3 8 9 9 6 6 2 5 7 5 5 5 5 5 1 7 9 4 Energy Cannon 1 | . . . . . . . . . 3 . 2 5 5 5 5 5 4 . . . Ballistic Gun 5 | . 2 11 14 9 9 9 5 6 3 1 . . . . . . 3 3 . 1 Peak Build Rating 120 | 6 8 22 33 39 41 43 58 58 69 76 92 93 97 99 108 114 117 120 115 108 Average Rating 64 | 6 7 18 28 36 40 42 52 58 58 61 84 91 93 95 107 111 110 107 104 78 On Entrance 63 | 6 6 8 22 33 38 41 43 58 58 67 76 90 93 94 99 108 114 67 115 103 Naked Turns . | . . . . . . . . . . . . . . . . . . . . . Heaviest Build 97 | 11 14 37 39 43 40 38 47 46 49 58 65 65 66 76 82 86 97 86 83 76 Greatest Support 84 | 20 20 45 42 45 42 43 46 46 84 84 76 76 76 76 76 76 84 84 70 70 Greatest Overweight (x) 12 | . . 1 . 1 . . 1 . 1 . . . . . 1 1 1 1 1 12 Average Overweight (x) . | . . . . . . . . . . . . . . . . 1 . . . . Largest Inventory Capacity 15 | 8 8 15 15 15 15 15 15 15 15 15 15 15 15 15 15 15 15 15 15 15 Average Capacity 14 | 8 8 14 15 15 15 15 15 15 15 15 15 15 15 15 15 15 15 15 15 13 Most Carried 15 | 5 8 15 15 15 15 15 15 15 15 15 15 15 15 15 15 15 15 15 15 14 Average Carried 13 | 2 5 13 14 14 14 14 14 15 13 13 12 14 14 14 14 14 14 12 14 10 Final Capacity 15 | 8 8 15 15 15 15 15 15 15 15 15 15 15 15 15 15 15 15 15 15 5 Final Carried 15 | 2 8 14 15 14 15 15 15 15 15 12 13 15 15 15 15 15 14 15 13 4 Class Distribution -------------------- 37% | Scavenger-Mutant 22% | Hacker-Mutant 20% | Mutant 11% | Scavenger-Gunner 4% | Scavenger-Tank Dominant Class ---------------- Mutant | -10/Materials Scavenger-Mutant | -9/Materials Mutant | -8/Materials Hacker-Mutant | -8/Storage Hacker-Mutant | -8/Recycling Hacker-Mutant | -8/Scraptown Hacker-Skirmisher | -6/Factory Hacker-Skirmisher | -6/Lower Caves Hacker-Mutant | -6/Data Miner Hacker-Mutant | -5/Proximity Caves Scavenger-Mutant | -5/Factory Scavenger-Mutant | -5/Waste Scavenger-Mutant | -5/Factory Scavenger-Mutant | -5/Extension Scavenger-Mutant | -5/Cetus Scavenger-Mutant | -5/Archives Scavenger-Mutant | -5/Hub_04(d) Scavenger-Tank | -4/Factory Scavenger-Gunner | -4/Upper Caves Scavenger-Gunner | -4/Upper Caves Resources | -11 -10 -9 -8 -8 -8 -8 -6 -6 -6 -5 -5 -5 -5 -5 -5 -5 -5 -4 -4 -4 ----------- Run | Yrd Mat Mat Mat Sto Rec Scr Fac Low Dat Pro Fac Was Fac Ext Cet Arc Hub Fac Upp Upp Matter Collected 5956 | 200 64 625 887 601 14 10 . . 499 432 145 183 15 114 80 87 287 1015 509 189 Remotely . | . . . . . . . . . . . . . . . . . . . . . Salvage Created 10151 | . 124 1071 623 1173 54 . 530 . 410 846 239 . 92 1142 53 331 529 1479 973 482 Parts 468 | . 17 62 33 61 6 . 21 . 17 38 14 . 3 42 3 23 28 60 23 17 Haulers Intercepted 1 | . . . 1 . . . . . . . . . . . . . . . . . Recyclers Shooed 3 | . . . . 1 . . . . . . . . . 1 . . . 1 . . Parts Field Recycled . | . . . . . . . . . . . . . . . . . . . . . Retrieved Matter . | . . . . . . . . . . . . . . . . . . . . . Parts Self-Destructed 58 | . . . . . . . . . . 30 . . . . . . . . 11 17 Prevented 12 | . . . . . . . . . . 2 . . . . . . . . 9 1 Kills | -11 -10 -9 -8 -8 -8 -8 -6 -6 -6 -5 -5 -5 -5 -5 -5 -5 -5 -4 -4 -4 ------- Run | Yrd Mat Mat Mat Sto Rec Scr Fac Low Dat Pro Fac Was Fac Ext Cet Arc Hub Fac Upp Upp Combat Hostiles Destroyed 185 | . 9 28 11 22 1 . 5 . 4 14 5 . 2 17 1 1 9 32 14 10 Melee 3 | . . . . . . . . . . 3 . . . . . . . . . . Guns 121 | . 7 24 11 22 1 . . . . 8 1 . . 6 . . 4 26 6 5 Cannons 34 | . . . . . . . . . . 2 2 . 2 11 1 . 4 3 5 4 AOE 14 | . 2 4 . . . . 4 . . . 2 . . . . 1 1 . . . Classes Destroyed 18 | . 2 5 3 1 . . . . . 4 . . . 1 . . 1 1 . . Worker 9 | . . 1 1 1 . . 1 . . . . . . . . . 4 1 . . Builder 3 | . . 2 . . . . . . . . . . . . . . 1 . . . Hauler 1 | . . . 1 . . . . . . . . . . . . . . . . . Recycler 5 | . . . . 1 . . 2 . . . . . . 2 . . . . . . Mechanic 3 | . . . 2 . . . 1 . . . . . . . . . . . . . Operator 13 | . . . 2 1 . . . . . . . . . . . 9 1 . . . Drone 1 | . . . . . . . . . . 1 . . . . . . . . . . Watcher 6 | . 1 3 . . . . . . . . . . . . . . 2 . . . Swarmer 44 | . 9 3 4 2 . . 4 . . . . . . 3 . . 2 13 . 4 Saboteur 2 | . . . . . . . . . . . . . . . . . 1 1 . . Grunt 66 | . . 15 4 12 . . . . . 4 4 . 1 4 . . 5 7 9 1 Brawler 5 | . . . . . . . . . . 1 . . . 1 . . . . . 3 Duelist 4 | . . 1 . . . . . . . 2 . . 1 . . . . . . . Protector 1 | . . . . . . . . . . 1 . . . . . . . . . . Sentry 37 | . . 9 3 8 1 . 1 . . 1 . . . 7 . 1 1 3 1 1 Hunter 13 | . . . . . . . . . . 4 1 . . 1 . . . 2 4 1 Programmer 6 | . . . . . . . . . . . . . . . . . . 6 . . Behemoth 1 | . . . . . . . . . . . . . . 1 . . . . . . Cetus Guard 1 | . . . . . . . . . . . . . . . 1 . . . . . Enhanced Grunt 4 | . . . . . . . . . 4 . . . . . . . . . . . Surgeon 1 | . . . . . . . . . . . . . 1 . . . . . . . Best Kill Streak 13 | . 4 13 5 4 1 . 4 . 3 4 3 . 1 5 1 4 6 10 3 5 Combat Bots Only 9 | . 3 8 4 3 1 . 4 . 3 4 3 . 1 5 1 1 5 9 3 5 Max Kills in Single Turn 4 | . 2 4 1 1 1 . 3 . 2 1 2 . 1 1 1 1 2 3 1 1 Gunslinging 1 | . . . . . . . . . . . . . . . . . . 1 . . Exploded 3 | . 2 2 . . . . 3 . . . 2 . . . . 1 1 . . . Melee 1 | . . . . . . . . . . 1 . . . . . . . . . . Uniques/NPCs Destroyed . | . . . . . . . . . . . . . . . . . . . . . Combat | -11 -10 -9 -8 -8 -8 -8 -6 -6 -6 -5 -5 -5 -5 -5 -5 -5 -5 -4 -4 -4 -------- Run | Yrd Mat Mat Mat Sto Rec Scr Fac Low Dat Pro Fac Was Fac Ext Cet Arc Hub Fac Upp Upp Hostile Shots Fired 1406 | . 43 133 72 99 2 . 24 . 18 132 20 . 8 98 3 . 162 260 172 160 Missed 425 | . 19 42 19 24 2 . 11 . 5 26 9 . 3 21 2 . 50 92 56 44 Damage Taken 14988 | . 201 986 416 765 . . 111 . 486 1634 205 . 107 907 9 . 2678 2809 1684 1990 Core 2323 | . 20 77 52 122 . . 22 . . 390 84 . . 114 . . 292 331 192 627 Absorbed by Shields 516 | . . . 159 127 . . . . . . . . . 221 9 . . . . . Redirected to Shielding 55 | . . . 3 52 . . . . . . . . . . . . . . . . Ignored by Resistances 5105 | . 60 289 164 251 . . 36 . 128 630 72 . 73 571 19 . 983 789 477 563 Regen/Repaired (Parts) 1864 | . . 249 92 204 . . . . . . . 124 466 551 . . . 178 . . Core Remaining (%) 73 | 100 92 80 . . . 68 . . . 51 . . . . . . 51 . . . Volleys Fired 605 | . 15 86 44 86 1 . 19 . 20 46 8 . 9 55 7 22 47 65 45 30 Largest 3 | . 2 2 2 2 2 . 2 . 2 2 2 . 2 2 2 2 2 3 3 3 Hottest 263 | . 100 79 46 94 90 . 90 . 115 159 155 . 178 178 178 178 178 263 234 205 Shots Fired 1185 | . 30 146 87 168 2 . 34 . 23 71 16 . 18 101 14 44 89 175 122 45 Gun 908 | . 30 137 86 164 2 . 30 . 3 62 8 . 9 55 7 22 45 136 79 33 Cannon 247 | . . . . . . . . . 8 9 8 . 9 46 7 22 44 39 43 12 Launcher 30 | . . 9 1 4 . . 4 . 12 . . . . . . . . . . . Special . | . . . . . . . . . . . . . . . . . . . . . Kinetic 489 | . 9 91 86 82 1 . 15 . 3 27 . . . . . . 27 84 43 21 Thermal 626 | . 21 46 . 82 1 . 15 . 8 44 16 . 18 101 14 44 62 91 39 24 Explosive 10 | . . 9 1 . . . . . . . . . . . . . . . . . Electromagnetic 60 | . . . . 4 . . 4 . 12 . . . . . . . . . 40 . Robot Hit Streak 50 | . 4 20 15 33 34 . 13 . 14 32 5 . 14 30 38 50 17 42 36 20 Robot Miss Streak 3 | . 3 3 2 2 . . 1 . 1 1 3 . 2 2 . 3 1 1 2 2 Penetration Max 1 | . . . . . . . . . . . . . . . . . 1 1 . 1 Secondary Targets 18 | . 2 2 1 3 . . . . . 1 . . . . . . . 7 . 2 Max Gunslinging Chain 1 | . 1 1 1 1 . . . . . 1 . . . . . . . 1 . 1 Shots Hit Robots 887 | . 16 112 68 103 1 . 25 . 11 71 10 . 12 88 14 38 35 141 104 38 Core Hits 402 | . 9 55 30 41 1 . 13 . 10 32 7 . 6 35 5 17 31 61 32 17 Critical Kills 4 | . . . 2 . . . . . . . . . . . . . . 2 . . Critical Parts Destroyed 16 | . . . 1 1 . . . . . 3 . . . . . . . 11 . . Critical Strikes 47 | . 1 4 3 4 . . 2 . . 3 . . . 6 . . . 21 2 1 Burn 18 | . 1 4 . 3 . . 2 . . . . . . 6 . . . 1 . 1 Destroy 18 | . . . 3 1 . . . . . . . . . . . . . 14 . . Blast 7 | . . . . . . . . . . . . . . . . . . 6 1 . Corrupt 1 | . . . . . . . . . . . . . . . . . . . 1 . Smash 3 | . . . . . . . . . . 3 . . . . . . . . . . Melee Attacks 12 | . . . . . . . . . 1 11 . . . . . . . . . . Impact 10 | . . . . . . . . . . 10 . . . . . . . . . . Slashing 2 | . . . . . . . . . 1 1 . . . . . . . . . . Piercing . | . . . . . . . . . . . . . . . . . . . . . Sneak Attacks 1 | . . . . . . . . . 1 . . . . . . . . . . . Combat Hostiles . | . . . . . . . . . . . . . . . . . . . . . Follow-up Attacks . | . . . . . . . . . . . . . . . . . . . . . Damage Inflicted 27624 | . 487 2609 1123 2284 26 . 705 . 493 1993 593 . 546 3379 481 1429 2272 4772 3308 1124 Guns 16301 | . 227 1642 1072 2271 26 . 522 . . 1161 138 . 196 1362 195 556 529 3804 1859 741 Cannons 7192 | . . . . . . . . . . 352 208 . 284 1709 286 814 896 968 1292 383 Explosions 3416 | . 260 967 38 . . . 183 . 430 . 247 . 66 162 . 59 847 . 157 . Melee 543 | . . . . . . . . . 63 480 . . . . . . . . . . Ramming 172 | . . . 13 13 . . . . . . . . . 146 . . . . . . Kinetic 7965 | . 78 1121 1072 823 . . 161 . . 371 . . . . . . 262 2190 1292 595 Thermal 15477 | . 149 521 . 1448 26 . 410 . . 1142 593 . 546 3206 481 1429 1343 2582 1072 529 Explosive 1265 | . 260 967 38 . . . . . . . . . . . . . . . . . Electromagnetic 2202 | . . . . . . . 134 . 430 . . . . 27 . . 667 . 944 . Impact 480 | . . . . . . . . . . 480 . . . . . . . . . . Slashing 63 | . . . . . . . . . 63 . . . . . . . . . . . Piercing . | . . . . . . . . . . . . . . . . . . . . . Highest Corruption 51 | . . . . . . . . . 47 51 . . . . 4 8 17 10 29 37 Average Corruption 19 | . . . . . . . . . 40 50 . . . . 4 6 8 5 21 31 Corruption Purged . | . . . . . . . . . . . . . . . . . . . . . Corruption Blocked . | . . . . . . . . . . . . . . . . . . . . . Effects 238 | . . . . . . . . . 15 45 . . . . 9 10 37 34 55 33 Message Errors 48 | . . . . . . . . . 5 7 . . . . 3 2 5 11 10 5 Matter Fused 48 | . . . . . . . . . 2 9 . . . . 2 5 10 7 10 3 Heat Flow Errors 25 | . . . . . . . . . 2 5 . . . . . . 3 4 8 3 Energy Discharges 36 | . . . . . . . . . 1 9 . . . . 3 1 3 5 10 4 Parts Rejected 3 | . . . . . . . . . . 2 . . . . . . . . . 1 Parts Fused 2 | . . . . . . . . . . . . . . . . . . . 2 . Data Loss (minor) 23 | . . . . . . . . . 2 4 . . . . 1 1 3 2 4 6 Data Loss (major) 14 | . . . . . . . . . 2 1 . . . . . 1 3 1 4 2 Misfires 6 | . . . . . . . . . . 1 . . . . . . . 3 2 . Alerts 6 | . . . . . . . . . . 1 . . . . . . 3 . . 2 Misdirections 8 | . . . . . . . . . . 1 . . . . . . 3 . . 4 Weapon Failures 19 | . . . . . . . . . 1 5 . . . . . . 4 1 5 3 Overload Shots . | . . . . . . . . . . . . . . . . . . . . . Overflow Damage 420 | . 30 38 . . . . 5 . 3 139 6 . 25 32 . 61 9 51 5 16 Projectiles 205 | . . . . . . . . . . . 6 . 25 32 . 61 9 51 5 16 Explosions 73 | . 30 38 . . . . 5 . . . . . . . . . . . . . Melee 142 | . . . . . . . . . 3 139 . . . . . . . . . . Knockbacks 28 | . . . . . . . . . . 3 . . . 1 . . . 10 12 2 Impact 4 | . . . . . . . . . . 3 . . . 1 . . . . . . Kinetic 23 | . . . . . . . . . . . . . . . . . . 9 12 2 Secondary 1 | . . . . . . . . . . . . . . . . . . 1 . . Self-Inflicted Damage 384 | . . . 20 . . . 13 . . . 60 . . 11 . . 239 . 41 . Shots 8 | . . . 1 . . . 1 . . . 1 . . 1 . . 3 . 1 . Rammed . | . . . . . . . . . . . . . . . . . . . . . Targets Rammed 17 | . . . 1 2 . . . . . . . . . 14 . . . . . . Kicked 17 | . . . 1 2 . . . . . . . . . 14 . . . . . . Crushed . | . . . . . . . . . . . . . . . . . . . . . Highest Temperature 714 | . 45 52 2 30 . . . . 163 714 117 . 184 554 178 256 298 168 . 192 Average Temperature 113 | . 16 18 2 8 . . . . 69 237 47 . 66 185 77 81 116 69 . 39 Received Heat Transfer 3537 | . . 399 193 402 . . 18 . . 441 54 . 27 457 4 . 390 489 336 327 Effects 25 | . . . . . . . . . . 12 . . . 13 . . . . . . Shutdowns 6 | . . . . . . . . . . 1 . . . 5 . . . . . . Energy Bleed 3 | . . . . . . . . . . 2 . . . 1 . . . . . . Interference 2 | . . . . . . . . . . 2 . . . . . . . . . . Matter Decay 4 | . . . . . . . . . . 3 . . . 1 . . . . . . Short Circuit 2 | . . . . . . . . . . . . . . 2 . . . . . . Damage (minor) 4 | . . . . . . . . . . 3 . . . 1 . . . . . . Damage (major) 3 | . . . . . . . . . . . . . . 3 . . . . . . Damage (core) 1 | . . . . . . . . . . 1 . . . . . . . . . . Siege Activations . | . . . . . . . . . . . . . . . . . . . . . Robots Corrupted 8 | . . . . . . . . . 4 1 . . . . . . . . 3 . Combat Hostiles 8 | . . . . . . . . . 4 1 . . . . . . . . 3 . Parts Fried 18 | . . . . . . . . . 7 4 . . . 2 . . . . 5 . Impact Corruptions 5 | . . . . . . . . . . 5 . . . . . . . . . . Robots Melted 5 | . . . . . . . 1 . . . . . . . . . . 3 . 1 Combat Hostiles 5 | . . . . . . . 1 . . . . . . . . . . 3 . 1 Parts Melted 27 | . 1 3 1 5 . . 2 . . 1 . . . 1 . 1 . 6 4 2 Heat Transferred 15807 | . 518 1591 . 2368 37 . 716 . . 706 335 . 309 2320 259 790 470 3053 1321 1014 Parts Sabotaged . | . . . . . . . . . . . . . . . . . . . . . Parts Stolen . | . . . . . . . . . . . . . . . . . . . . . Parts Stripped . | . . . . . . . . . . . . . . . . . . . . . Power Chain Reactions 8 | . . . . . . . 2 . . . . . 1 2 . 1 1 . 1 . Alert | -11 -10 -9 -8 -8 -8 -8 -6 -6 -6 -5 -5 -5 -5 -5 -5 -5 -5 -4 -4 -4 ------- Run | Yrd Mat Mat Mat Sto Rec Scr Fac Low Dat Pro Fac Was Fac Ext Cet Arc Hub Fac Upp Upp Peak Influence 2011 | . 149 427 450 473 63 . 120 . . . 1174 343 858 1701 747 371 2011 1371 . . Initial 922 | . . 45 117 58 29 . . . . . 922 343 211 362 721 184 107 841 . . Average 446 | . 41 206 262 206 21 . 49 . . . 1018 343 383 1020 711 330 993 896 . . Maximum Alert Level 5 | . . 2 2 2 . . . . . . 4 1 3 5 3 1 5 4 . . Low Security (%) 35 | 100 100 47 37 44 100 . 100 . . . . . 12 . . 2 6 . . . Level 1 27 | . . 51 54 47 . . . . . . . 100 55 6 . 98 1 . . . Level 2 9 | . . 1 7 7 . . . . . . . . 28 25 17 . 11 15 . . Level 3 17 | . . . . . . . . . . . 66 . 3 27 82 . 33 70 . . Level 4 7 | . . . . . . . . . . . 34 . . 20 . . 44 14 . . Level 5 2 | . . . . . . . . . . . . . . 19 . . 2 . . . High Security . | . . . . . . . . . . . . . . . . . . . . . Max Security . | . . . . . . . . . . . . . . . . . . . . . Squads Dispatched 39 | . . 3 4 3 . . 2 . . 1 2 . 4 5 . . 9 5 . 1 Investigation 8 | . . 2 1 2 . . . . . . 1 . . . . . 2 . . . Extermination 6 | . . . . . . . 1 . . . . . 2 . . . . 3 . . Reinforcement 14 | . . 1 2 1 . . 1 . . . 1 . 1 1 . . 6 . . . Assault 11 | . . . 1 . . . . . . 1 . . 1 4 . . 1 2 . 1 Garrison . | . . . . . . . . . . . . . . . . . . . . . Intercept . | . . . . . . . . . . . . . . . . . . . . . Searches Triggered . | . . . . . . . . . . . . . . . . . . . . . Construction Impeded 2 | . . 1 . . . . . . . . . . . . . . 1 . . . Haulers Reinforced 2 | . . . . . . . . . . . . . . . . . 2 . . . Active Scanning Responses . | . . . . . . . . . . . . . . . . . . . . . Cargo Convoy Interrupts . | . . . . . . . . . . . . . . . . . . . . . Stealth | -11 -10 -9 -8 -8 -8 -8 -6 -6 -6 -5 -5 -5 -5 -5 -5 -5 -5 -4 -4 -4 --------- Run | Yrd Mat Mat Mat Sto Rec Scr Fac Low Dat Pro Fac Was Fac Ext Cet Arc Hub Fac Upp Upp Distress Signals 9 | . . 3 . 1 . . . . . 1 . . . . 1 . 2 1 . . Communications Jammed 138 | . . . . . . . . . . . . . . . . . 59 79 . . Distress Signals 138 | . . . . . . . . . . . . . . . . . 59 79 . . Times Spotted 376 | . 16 37 21 33 1 . 5 . 4 23 7 . 17 55 6 19 53 45 14 20 Peak Tracking Total 13 | . 5 8 5 5 1 . 4 . 3 6 4 . 5 12 5 2 13 10 3 12 Tactical Retreats 11 | . . 2 . . . . . . . . 1 . . 2 . . 2 2 . 2 Traps | -11 -10 -9 -8 -8 -8 -8 -6 -6 -6 -5 -5 -5 -5 -5 -5 -5 -5 -4 -4 -4 ------- Run | Yrd Mat Mat Mat Sto Rec Scr Fac Low Dat Pro Fac Was Fac Ext Cet Arc Hub Fac Upp Upp Traps Triggered 12 | . 2 1 2 2 . . . . . . 1 . . 1 . . 3 . . . Indirectly 2 | . . . . 1 . . . . . . . . . . . . 1 . . . Trap Hack Attempts . | . . . . . . . . . . . . . . . . . . . . . Triggered . | . . . . . . . . . . . . . . . . . . . . . Disarmed . | . . . . . . . . . . . . . . . . . . . . . Reprogrammed . | . . . . . . . . . . . . . . . . . . . . . Reused . | . . . . . . . . . . . . . . . . . . . . . Traps Extracted . | . . . . . . . . . . . . . . . . . . . . . Installed . | . . . . . . . . . . . . . . . . . . . . . Triggered 2 | . . . . . . . . . . . . . . . . . . . . 2 Machines | -11 -10 -9 -8 -8 -8 -8 -6 -6 -6 -5 -5 -5 -5 -5 -5 -5 -5 -4 -4 -4 ---------- Run | Yrd Mat Mat Mat Sto Rec Scr Fac Low Dat Pro Fac Was Fac Ext Cet Arc Hub Fac Upp Upp Machines Disabled 65 | . 2 1 1 5 . . . . . . 2 . 5 8 . 2 36 3 . . Max in Single Turn 19 | . 2 1 1 1 . . . . . . 2 . . 4 . . 19 1 . . Garrison Access 4 | . . . 1 1 . . . . . . . . . . . . 2 . . . Network Hub 4 | . . . . . . . . . . . . . . . . . 4 . . . Energy Cycler 1 | . . . . . . . . . . . . . . 1 . . . . . . Machines Repaired . | . . . . . . . . . . . . . . . . . . . . . Machines Dismantled . | . . . . . . . . . . . . . . . . . . . . . Machines Sabotaged . | . . . . . . . . . . . . . . . . . . . . . Overloaded Fab Kills . | . . . . . . . . . . . . . . . . . . . . . Hacking | -11 -10 -9 -8 -8 -8 -8 -6 -6 -6 -5 -5 -5 -5 -5 -5 -5 -5 -4 -4 -4 --------- Run | Yrd Mat Mat Mat Sto Rec Scr Fac Low Dat Pro Fac Was Fac Ext Cet Arc Hub Fac Upp Upp Machines Accessed 87 | . 7 10 8 14 6 . 3 . 2 . 1 . 3 16 . . 9 7 1 . Terminals 66 | . 6 7 6 9 6 . 2 . . . . . 2 15 . . 7 5 1 . Fabricators . | . . . . . . . . . . . . . . . . . . . . . Repair Stations 7 | . . 1 1 2 . . 1 . . . . . 1 . . . . 1 . . Recycling Units 4 | . 1 . . 2 . . . . . . . . . 1 . . . . . . Scanalyzers 5 | . . 2 1 . . . . . . . 1 . . . . . . 1 . . Garrison Access 3 | . . . . 1 . . . . . . . . . . . . 2 . . . Total Hacks 322 | . 27 56 26 53 28 . 7 . 12 . 9 . 14 31 . . 29 29 1 . Successful 212 | . 19 43 16 31 14 . 2 . 12 . 7 . 12 20 . . 16 19 1 . Failed 109 | . 8 13 9 22 14 . 5 . . . 2 . 2 11 . . 13 10 . . Catastrophic 12 | . . 1 . 2 4 . . . . . . . . 3 . . 1 1 . . Database Lockouts 1 | . . . 1 . . . . . . . . . . . . . . . . . Manual 135 | . 13 14 18 17 15 . 1 . . . . . 3 14 1 . 22 17 . . Terminals 222 | . 25 23 22 38 28 . 4 . . . . . 4 30 . . 26 21 1 . Fabricators . | . . . . . . . . . . . . . . . . . . . . . Repair Stations 38 | . . 11 2 6 . . 3 . . . . . 10 . . . . 6 . . Recycling Units 8 | . 2 . . 5 . . . . . . . . . 1 . . . . . . Scanalyzers 35 | . . 22 2 . . . . . . . 9 . . . . . . 2 . . Garrison Access 7 | . . . . 4 . . . . . . . . . . . . 3 . . . Terminal Hacks 88 | . 10 4 6 16 9 . 1 . 12 . . . 1 15 . . 5 8 1 . Record 4 | . 1 . . . 2 . . . . . . . . . . . . . 1 . Part Schematic 20 | . . . . 7 6 . . . 5 . . . . . . . 2 . . . Robot Schematic 6 | . 1 . 1 . . . . . 4 . . . . . . . . . . . Robot Analysis 7 | . 2 . 3 2 . . . . . . . . . . . . . . . . Prototype ID Bank 12 | . 1 . 1 1 1 . . . 3 . . . . 3 . . . 2 . . Open Door 11 | . . . . 2 . . . . . . . . 1 8 . . . . . . Level Access Points 2 | . . . . . . . . . . . . . . . . . 1 1 . . Branch Access Points 4 | . . . 1 1 . . 1 . . . . . . . . . 1 . . . Terminal Index 4 | . 1 1 . 1 . . . . . . . . . 1 . . . . . . Repair Station Index 1 | . 1 . . . . . . . . . . . . . . . . . . . Scanalyzer Index 1 | . . . . . . . . . . . . . . . . . . 1 . . Unreport Threat 7 | . 1 . . 1 . . . . . . . . . 2 . . . 3 . . Locate Traps 5 | . 2 1 . . . . . . . . . . . 1 . . 1 . . . Registered Components 2 | . . 1 . . . . . . . . . . . . . . . 1 . . Zone Layout 2 | . . 1 . 1 . . . . . . . . . . . . . . . . Fabricator Hacks . | . . . . . . . . . . . . . . . . . . . . . Repair Station Hacks 34 | . . 10 2 6 . . 1 . . . . . 9 . . . . 6 . . Scan Component 18 | . . 5 1 3 . . 1 . . . . . 5 . . . . 3 . . Repair 16 | . . 5 1 3 . . . . . . . . 4 . . . . 3 . . Recycling Unit Hacks 3 | . 1 . . 1 . . . . . . . . . 1 . . . . . . Retrieve Components 3 | . 1 . . 1 . . . . . . . . . 1 . . . . . . Scanalyzer 29 | . . 20 . . . . . . . . 7 . . . . . . 2 . . Insert Component 14 | . . 10 . . . . . . . . 3 . . . . . . 1 . . Analyze 15 | . . 10 . . . . . . . . 4 . . . . . . 1 . . Garrison Access Hacks 3 | . . . . 1 . . . . . . . . . . . . 2 . . . Seal Access 3 | . . . . 1 . . . . . . . . . . . . 2 . . . Unauthorized Hacks 54 | . 8 9 8 6 5 . . . . . . . 2 4 . . 9 3 . . Terminals 53 | . 8 8 8 6 5 . . . . . . . 2 4 . . 9 3 . . Track 4 | . . . . . . . . . . . . . 1 1 . . 2 . . . Botnet 18 | . 3 3 3 . . . . . . . . . 1 3 . . 3 2 . . Detonate 2 | . . . . . . . . . . . . . . . . . 2 . . . Skim 27 | . 5 5 5 6 5 . . . . . . . . . . . . 1 . . Sabotage 2 | . . . . . . . . . . . . . . . . . 2 . . . Fabricators . | . . . . . . . . . . . . . . . . . . . . . Repair Stations . | . . . . . . . . . . . . . . . . . . . . . Recycling Units . | . . . . . . . . . . . . . . . . . . . . . Scanalyzers 1 | . . 1 . . . . . . . . . . . . . . . . . . Extract 1 | . . 1 . . . . . . . . . . . . . . . . . . Garrison Access . | . . . . . . . . . . . . . . . . . . . . . Data Cores Recovered 2 | . . . . . . . . . . . . . 1 . . . 1 . . . Used . | . . . . . . . . . . . . . . . . . . . . . Hacking Detections 59 | . 5 9 6 10 6 . 3 . . . 1 . 2 7 . . 5 5 . . Full Trace Events 4 | . . 1 . 1 1 . . . . . 1 . . . . . . . . . Feedback Events . | . . . . . . . . . . . . . . . . . . . . . Feedback Blocked . | . . . . . . . . . . . . . . . . . . . . . Robot Schematics Acquired 6 | . 1 . 1 . . . . . 4 . . . . . . . . . . . Robots Built . | . . . . . . . . . . . . . . . . . . . . . Authchips . | . . . . . . . . . . . . . . . . . . . . . Time . | . . . . . . . . . . . . . . . . . . . . . Total Robot Build Rating . | . . . . . . . . . . . . . . . . . . . . . Part Schematics Acquired 39 | . . 17 . 7 5 . . . 5 . 2 . . . . . 2 1 . . Parts Built . | . . . . . . . . . . . . . . . . . . . . . Authchips . | . . . . . . . . . . . . . . . . . . . . . Time . | . . . . . . . . . . . . . . . . . . . . . Total Part Build Rating . | . . . . . . . . . . . . . . . . . . . . . Parts Repaired 15 | . . 5 1 3 . . . . . . . . 4 . . . . 2 . . Time 904 | . . 148 38 169 . . . . . . . . 387 . . . . 162 . . Parts Recycled . | . . . . . . . . . . . . . . . . . . . . . Recycled Matter . | . . . . . . . . . . . . . . . . . . . . . Retrieved Matter . | . . . . . . . . . . . . . . . . . . . . . Retrieved Components 11 | . . . . 1 . . . . . . . . . 10 . . . . . . Parts Scanalyzed 14 | . . 10 . . . . . . . . 3 . . . . . . 1 . . Part Schematics Acquired 13 | . . 10 . . . . . . . . 2 . . . . . . 1 . . Parts Damaged 3 | . . . . . . . . . . . 2 . . . . . . 1 . . Bothacking | -11 -10 -9 -8 -8 -8 -8 -6 -6 -6 -5 -5 -5 -5 -5 -5 -5 -5 -4 -4 -4 ------------ Run | Yrd Mat Mat Mat Sto Rec Scr Fac Low Dat Pro Fac Was Fac Ext Cet Arc Hub Fac Upp Upp Used RIF Installer . | . . . . . . . . . . . . . . . . . . . . . Robots Hacked . | . . . . . . . . . . . . . . . . . . . . . Non-combat . | . . . . . . . . . . . . . . . . . . . . . Combat . | . . . . . . . . . . . . . . . . . . . . . Robot Hacks Applied . | . . . . . . . . . . . . . . . . . . . . . Relay Couplers Released 2 | . . . 2 . . . . . . . . . . . . . . . . . Machine Destruction 2 | . . . 2 . . . . . . . . . . . . . . . . . Fabnet Peak Effective % . | . . . . . . . . . . . . . . . . . . . . . Robots Rewired 9 | . . . . . . . . . . 1 . . . 7 . . . . . 1 Allies Hacked . | . . . . . . . . . . . . . . . . . . . . . Hacks Repelled . | . . . . . . . . . . . . . . . . . . . . . Allies | -11 -10 -9 -8 -8 -8 -8 -6 -6 -6 -5 -5 -5 -5 -5 -5 -5 -5 -4 -4 -4 -------- Run | Yrd Mat Mat Mat Sto Rec Scr Fac Low Dat Pro Fac Was Fac Ext Cet Arc Hub Fac Upp Upp Total Allies 49 | . . . . . . . . . . 1 . 20 . 22 5 . . . . 1 Largest Group 23 | . . . . . . . . . . 1 . 20 20 23 19 19 14 . . 1 Highest-Rated Group 1074 | . . . . . . . . . . 30 . 837 837 897 1074 1074 809 . . 49 Highest-Rated Ally 159 | . . . . . . . . . . 30 . 50 50 159 159 159 96 . . 49 Total Orders 2 | . . . . . . . . . . . . . . . . 2 . . . . STAY 1 | . . . . . . . . . . . . . . . . 1 . . . . FOLLOW 1 | . . . . . . . . . . . . . . . . 1 . . . . Ally Attacks 517 | . . . . . . . . . . 7 . . 117 162 31 27 171 . . 2 Total Damage 16552 | . . . . . . . . . . 177 . . 4697 5920 716 632 4338 . . 72 Kills 99 | . . . . . . . . . . . . . 22 39 3 4 31 . . . Allies Corrupted 1 | . . . . . . . . . . . . . . . 1 . . . . . Allies Melted . | . . . . . . . . . . . . . . . . . . . . . Intel | -11 -10 -9 -8 -8 -8 -8 -6 -6 -6 -5 -5 -5 -5 -5 -5 -5 -5 -4 -4 -4 ------- Run | Yrd Mat Mat Mat Sto Rec Scr Fac Low Dat Pro Fac Was Fac Ext Cet Arc Hub Fac Upp Upp Robot Analysis Total 152 | . 2 . 3 2 . . . . 145 . . . . . . . . . . . Derelict Logs Recovered 3 | . . . . . . . . . . 1 . . . . . . . . 2 . Drone Launches . | . . . . . . . . . . . . . . . . . . . . . Drone Recoveries . | . . . . . . . . . . . . . . . . . . . . . Exploration | -11 -10 -9 -8 -8 -8 -8 -6 -6 -6 -5 -5 -5 -5 -5 -5 -5 -5 -4 -4 -4 ------------- Run | Yrd Mat Mat Mat Sto Rec Scr Fac Low Dat Pro Fac Was Fac Ext Cet Arc Hub Fac Upp Upp Turns Passed 15521 | 5 782 1836 1092 1575 900 560 514 14 457 722 150 174 743 1200 473 350 896 1418 1125 535 Spaces Moved 8269 | 3 590 982 709 794 811 498 316 12 203 314 74 129 208 678 100 124 391 571 447 315 Core 112 | . . . . . . . . . . . . . . . . . . . . 112 Treads . | . . . . . . . . . . . . . . . . . . . . . Legs 8157 | 3 590 982 709 794 811 498 316 12 203 314 74 129 208 678 100 124 391 571 447 203 Wheels . | . . . . . . . . . . . . . . . . . . . . . Hover . | . . . . . . . . . . . . . . . . . . . . . Flight . | . . . . . . . . . . . . . . . . . . . . . Fastest Speed 50 | 120 120 90 100 110 110 110 120 120 120 120 120 120 120 120 120 190 120 120 120 50 Average Speed 128 | 120 120 107 108 111 110 110 137 120 127 120 120 120 120 120 176 190 184 167 186 131 Slowest Speed 650 | 120 120 180 110 186 110 110 190 120 190 120 120 120 120 120 190 190 190 190 190 650 Overloaded Moves . | . . . . . . . . . . . . . . . . . . . . . Propulsion Burnouts . | . . . . . . . . . . . . . . . . . . . . . Robots Hopped . | . . . . . . . . . . . . . . . . . . . . . Cave-ins Triggered . | . . . . . . . . . . . . . . . . . . . . . Exploration Rate (%) 51 | 2 90 66 68 93 97 48 10 3 77 45 2 78 9 85 51 73 56 14 64 40 Regions Visited 20 Branch Regions 12 Pre-discovered Areas 31 | . . 1 3 1 . . . . 24 . . . . . . . . . 2 . Known Exits Taken 11 | . . 1 1 1 1 1 1 1 1 1 . . . 1 . . 1 . . . Unknown Exits Taken 7 | 1 1 . . . . . . . . . . . 1 . 1 1 . 1 1 . Scrap Searched 8 | . . . . . . 2 . . . . . . . . . . . . 4 2 Spaces Dug 185 | . . . . . . . . . . . . . 1 . . . 182 1 1 . Terrain Destroyed 826 | . 26 46 9 5 . . . . 6 4 28 . 5 19 . 8 614 35 18 3 Melee . | . . . . . . . . . . . . . . . . . . . . . Projectile 104 | . . . . 5 . . . . 6 4 3 . 2 2 . . 34 35 10 3 AOE 722 | . 26 46 9 . . . . . . . 25 . 3 17 . 8 580 . 8 . Terrain Rammed . | . . . . . . . . . . . . . . . . . . . . . Walls Destroyed . | . . . . . . . . . . . . . . . . . . . . . Machines Disabled . | . . . . . . . . . . . . . . . . . . . . . Actions | -11 -10 -9 -8 -8 -8 -8 -6 -6 -6 -5 -5 -5 -5 -5 -5 -5 -5 -4 -4 -4 --------- Run | Yrd Mat Mat Mat Sto Rec Scr Fac Low Dat Pro Fac Was Fac Ext Cet Arc Hub Fac Upp Upp Total 12180 | 6 636 1625 945 1349 817 512 365 11 381 576 119 149 686 999 391 209 481 892 642 389 Wait 2667 | . 12 486 136 415 . 4 5 . 95 174 22 13 462 193 272 49 21 191 110 7 Move 8250 | 2 589 981 708 793 810 497 315 11 202 313 74 128 207 677 99 123 390 570 446 315 Hop . | . . . . . . . . . . . . . . . . . . . . . Pick Up 137 | . 8 17 12 6 2 4 6 . 14 7 4 5 5 7 4 5 2 19 6 4 Fast Attach 99 | . 4 12 6 12 2 . 3 . 16 3 2 . . 2 . 1 6 13 10 7 Attach 65 | . . 3 3 3 . . 3 . 3 12 3 . . 1 . . 4 18 6 6 Detach 14 | . 1 . . 4 . . . . 1 4 2 . . . . . 1 . . 1 Swap 103 | . 2 21 15 10 . 2 9 . 3 3 1 . 2 6 3 3 5 8 7 3 Drop 161 | 4 5 19 13 18 2 5 5 . 26 3 3 3 1 14 6 6 5 8 12 3 Fire 605 | . 15 86 44 86 1 . 19 . 20 46 8 . 9 55 7 22 47 65 45 30 Melee 11 | . . . . . . . . . 1 10 . . . . . . . . . . Ram . | . . . . . . . . . . . . . . . . . . . . . Kick 17 | . . . 1 2 . . . . . . . . . 14 . . . . . . Crush . | . . . . . . . . . . . . . . . . . . . . . Escape Stasis 4 | . . . . . . . . . . . . . . 4 . . . . . . Rewire 47 | . . . 7 . . . . . . 1 . . . 26 . . . . . 13 Trap . | . . . . . . . . . . . . . . . . . . . . . Miscellaneous . | . . . . . . . . . . . . . . . . . . . . . Route ------- -11/Scrapyard -10/Materials (discovered 4 exits: *Mat x3 / [*Min]) -9/Materials (discovered 5 exits: *Mat x3 / Min x2) -8/Materials (discovered 2 exits: [*Fac] / *Sto) -8/Storage -8/Recycling (discovered 2 exits: *Fac / *Scr) -8/Scraptown -6/Factory (discovered 4 exits: Fac x2 / *Low x2) -6/Lower Caves (discovered 2 exits: Low / *Dat) -6/Data Miner -5/Proximity Caves -5/Factory -5/Waste -5/Factory -5/Extension (discovered 2 exits: *Fac / *Cet) -5/Cetus -5/Archives -5/Hub_04(d) (discovered 4 exits: *Fac x4) -4/Factory (discovered 5 exits: Res x4 / *Upp) -4/Upper Caves -4/Upper Caves History --------- Turn | Location | Event 3 | -11/Scrapyard | Discovered new exit (range 0) 6 | -11/Scrapyard | Entered Materials 213 | -10/Materials | Discovered new exit (range 16) 283 | -10/Materials | Discovered new exit (range 10) 314 | -10/Materials | Build established: Mutant 577 | -10/Materials | Discovered new exit (range 5) 753 | -10/Materials | Discovered new exit (range 16) 788 | -10/Materials | Entered another Materials area 788 | -9/Materials | Evolved 2 slots: Propulsion x1, Utility x1 929 | -9/Materials | Repaired Lgt. Ion Engine 956 | -9/Materials | Repaired Aluminum Leg 1049 | -9/Materials | Discovered new exit (range 10) 1497 | -9/Materials | Repaired Autogun 1530 | -9/Materials | Repaired Beam Rifle 1564 | -9/Materials | Repaired Imp. Ion Engine 1859 | -9/Materials | Build established: Scavenger-Mutant 1940 | -9/Materials | Learned Storage emergency access door positions 2006 | -9/Materials | Identified exit to Materials 2057 | -9/Materials | Destroyed 8 combat bots 2062 | -9/Materials | Learned Storage terminal intel 2107 | -9/Materials | Learned Storage stockpile data 2143 | -9/Materials | Identified exit to Mines 2168 | -9/Materials | Loaded intel: 2 recycling unit locations 2624 | -9/Materials | Entered another Materials area 2624 | -8/Materials | Evolved 2 slots: Utility x2 2793 | -8/Materials | Repaired Carbon-fiber Leg 2846 | -8/Materials | Build established: Mutant 2966 | -8/Materials | Identified exit to Storage 3445 | -8/Materials | Central database locked down 3456 | -8/Materials | Learned Storage trap positions 3506 | -8/Materials | Learned location of Storage (-8) 3576 | -8/Materials | Learned location of 1 exit from Extension 3593 | -8/Materials | Learned 2 Lower Caves zone layouts 3613 | -8/Materials | Met 7R-MNS 3621 | -8/Materials | Learned location of Zion (-7) 3661 | -8/Materials | Learned location of 2 exits from Factory 3690 | -8/Materials | Discovered new exit (range 16) 3716 | -8/Materials | Entered Storage 3717 | -8/Storage | Loaded intel: 27 trap records 3719 | -8/Storage | Loaded intel: 13 terminal locations 4374 | -8/Storage | Identified exit to Recycling 4433 | -8/Storage | Used back door to open Recycling access 4594 | -8/Storage | Build established: Hacker-Mutant 4767 | -8/Storage | Repaired Cld. Ion Engine 4806 | -8/Storage | Repaired VSS Leg 4955 | -8/Storage | Learned location of 1 exit from Lower Caves 4990 | -8/Storage | Repaired Imp. Heavy Laser 4999 | -8/Storage | Learned Factory recycling unit intel 5035 | -8/Storage | Learned Factory security intel 5082 | -8/Storage | Learned location of 1 exit from Extension 5113 | -8/Storage | Learned 4 Factory zone layouts 5156 | -8/Storage | Learned Factory repair station intel 5291 | -8/Storage | Entered Recycling 5584 | -8/Recycling | Discovered new exit (range 15) 6160 | -8/Recycling | Scanned before Scraplab entrance 6177 | -8/Recycling | Entered Scraplab 6189 | -8/Recycling | Discovered new exit (range 2) 6189 | -8/Recycling | Identified exit to Scraptown 6191 | -8/Recycling | Entered Scraptown 6547 | -8/Scraptown | Visited The Evicted 6584 | -8/Scraptown | Visited TADAMA 6602 | -8/Scraptown | Visited Cyclists 6619 | -8/Scraptown | Heard Great Nut preacher, LISTEN AND RECITE! 6648 | -8/Scraptown | Visited SPCMW 6660 | -8/Scraptown | Visited CPS Storage 6743 | -8/Scraptown | Discovered new exit (range 5) 6750 | -8/Scraptown | Identified exit to Factory 6751 | -8/Scraptown | Entered Factory 6751 | -6/Factory | Evolved 4 slots: Power x1, Utility x3 6752 | -6/Factory | Identified exit to Factory 6752 | -6/Factory | Identified exit to Lower Caves 6755 | -6/Factory | Loaded intel: 6 repair station locations 6756 | -6/Factory | Loaded intel: 6 recycling unit locations 7219 | -6/Factory | Build established: Hacker-Skirmisher 7265 | -6/Factory | Entered Lower Caves 7266 | -6/Lower Caves | A Derelict revealed a hidden shortcut to meet someone special 7266 | -6/Lower Caves | Identified exit to Lower Caves 7277 | -6/Lower Caves | Identified exit to Data Miner 7279 | -6/Lower Caves | Entered Data Miner 7279 | -6/Data Miner | Discovered new exit (range 6) 7302 | -6/Data Miner | Met Data Miner 7342 | -6/Data Miner | Received God Mode back door access code from Data Miner 7377 | -6/Data Miner | Interfaced with the Data Conduit 7439 | -6/Data Miner | System corruption reached 10% 7455 | -6/Data Miner | Lost 3 parts (1p2u) 7489 | -6/Data Miner | Found Corrupted Exp. Thermal Shield 7490 | -6/Data Miner | System corruption reached 30% 7704 | -6/Data Miner | Identified exit to Proximity Caves 7713 | -6/Data Miner | Build established: Hacker-Mutant 7736 | -6/Data Miner | Entered Proximity Caves 7740 | -5/Proximity Caves | Spotter reported a threat 7740 | -5/Proximity Caves | Spotter reported a threat 7797 | -5/Proximity Caves | Attracted the attention of an 0b10 outpost 7833 | -5/Proximity Caves | Spotter reported a threat 7886 | -5/Proximity Caves | Spotter reported a threat 7947 | -5/Proximity Caves | Lost 5 parts (1p3u1w) 8063 | -5/Proximity Caves | Spotter reported a threat 8084 | -5/Proximity Caves | Learned Factory emergency access door positions 8169 | -5/Proximity Caves | Spotter reported a threat 8285 | -5/Proximity Caves | Spotter reported a threat 8333 | -5/Proximity Caves | Spotter reported a threat 8398 | -5/Proximity Caves | Spotter reported a threat 8447 | -5/Proximity Caves | Discovered exit to Factory (range 7) 8458 | -5/Proximity Caves | Entered Factory 8458 | -5/Factory | Evolved 2 slots: Utility x2 8460 | -5/Factory | Loaded intel: 233 machine locations 8570 | -5/Factory | Build established: Scavenger-Mutant 8580 | -5/Factory | Discovered new exit (range 11) 8608 | -5/Factory | Sucked down chute 8608 | -5/Factory | Entered Waste 8609 | -5/Waste | Joined by Warlord forces that had cleared the area 8731 | -5/Waste | Discovered new exit (range 12) 8782 | -5/Waste | Entered Factory 8782 | -5/Factory | Accompanied by 20 allies 8783 | -5/Factory | Loaded intel: 240 machine locations 8949 | -5/Factory | Repaired Broken Adv. Weapon Cycler 9036 | -5/Factory | Repaired Broken Phase Gun 9141 | -5/Factory | Repaired Broken Enh. Quantum Rifle 9245 | -5/Factory | Repaired Broken Centrium Leg 9382 | -5/Factory | First assault squad dispatched 9456 | -5/Factory | Discovered new exit (range 9) 9525 | -5/Factory | Entered Extension 9525 | -5/Extension | Accompanied by 10 allies 9526 | -5/Extension | Identified exit to Factory 9526 | -5/Extension | Identified exit to Cetus 9527 | -5/Extension | Loaded intel: 46 machine locations 9528 | -5/Extension | Disrupted transfer network 9534 | -5/Extension | Lost 8 allies 9688 | -5/Extension | Rescued a captive Derelict 9689 | -5/Extension | Rescued a captive Derelict 9740 | -5/Extension | Rescued a captive Derelict 9742 | -5/Extension | Rescued a captive Derelict 9759 | -5/Extension | Rescued a captive Derelict 9761 | -5/Extension | Rescued a captive Derelict 9772 | -5/Extension | Rescued a captive Derelict 9787 | -5/Extension | Rescued a captive Derelict 9791 | -5/Extension | Rescued a captive Derelict 9803 | -5/Extension | Rescued a captive Derelict 9811 | -5/Extension | Rescued a captive Derelict 9811 | -5/Extension | Rescued a captive Derelict 9825 | -5/Extension | First assault squad dispatched 10152 | -5/Extension | Spotted B-75 Beast 10158 | -5/Extension | Destroyed B-75 Beast 10166 | -5/Extension | Spotted B-75 Beast 10176 | -5/Extension | Allies destroyed B-75 Beast 10233 | -5/Extension | Rescued a captive Derelict 10234 | -5/Extension | Rescued a captive Derelict 10281 | -5/Extension | Rescued A7 10425 | -5/Extension | Energy Cycler disabled 10725 | -5/Extension | Entered Cetus 10725 | -5/Cetus | Accompanied by 20 allies (A7) 10726 | -5/Cetus | Loaded intel: 24 machine locations 10730 | -5/Cetus | Acquired a Cetus Manufacturing Module code from A7 10740 | -5/Cetus | Spotted Cetus Guard 10741 | -5/Cetus | Spotted Cetus Guard 10742 | -5/Cetus | Spotted Cetus Guard 10746 | -5/Cetus | Spotted Cetus Guard 10752 | -5/Cetus | Destroyed Cetus Guard 10756 | -5/Cetus | Allies destroyed Cetus Guard 10762 | -5/Cetus | Allies destroyed Cetus Guard 10790 | -5/Cetus | Lost 7 allies 10858 | -5/Cetus | Started Cetus Manufacturing Module 10883 | -5/Cetus | Manufactured an Enhanced Grunt 10908 | -5/Cetus | Manufactured an Enhanced Grunt 10933 | -5/Cetus | Manufactured an Enhanced Grunt 10958 | -5/Cetus | Manufactured an Enhanced Grunt 10983 | -5/Cetus | Manufactured an Enhanced Grunt 11118 | -5/Cetus | Discovered new exit (range 15) 11198 | -5/Cetus | Entered Archives 11198 | -5/Archives | Accompanied by 19 allies (A7) 11199 | -5/Archives | Loaded intel: 8 machine locations 11286 | -5/Archives | Lost 3 allies 11312 | -5/Archives | Discovered new exit (range 16) 11548 | -5/Archives | Entered Hub_04(d) 11548 | -5/Hub_04(d) | Accompanied by 14 allies 11549 | -5/Hub_04(d) | Loaded intel: 105 machine locations 11699 | -5/Hub_04(d) | Lost 3 allies 11815 | -5/Hub_04(d) | Lost 5 allies 11832 | -5/Hub_04(d) | Lost 4 parts (1p2u1w) 12148 | -5/Hub_04(d) | First assault squad dispatched 12337 | -5/Hub_04(d) | Network Hub disabled 12340 | -5/Hub_04(d) | Network Hub disabled 12389 | -5/Hub_04(d) | Spotted Lightning 12391 | -5/Hub_04(d) | System corruption reached 10% 12393 | -5/Hub_04(d) | Spotted Lightning 12394 | -5/Hub_04(d) | Spotted Lightning 12404 | -5/Hub_04(d) | Spotted Lightning 12404 | -5/Hub_04(d) | Spotted Lightning 12406 | -5/Hub_04(d) | Spotted Lightning 12430 | -5/Hub_04(d) | Network Hub disabled 12430 | -5/Hub_04(d) | Network Hub disabled 12444 | -5/Hub_04(d) | Entered Factory 12444 | -4/Factory | Evolved 2 slots: Utility x1, Weapon x1 12445 | -4/Factory | Loaded intel: 287 machine locations 12474 | -4/Factory | Lost 7 parts (1p1n4u1w) 12705 | -4/Factory | Repaired Imp. Transmission Jammer 12763 | -4/Factory | Repaired Rnf. Fission Core 12854 | -4/Factory | Build established: Scavenger-Tank 12903 | -4/Factory | Destroyed 9 combat bots 13194 | -4/Factory | First assault squad dispatched 13432 | -4/Factory | Destroyed 7 combat bots 13438 | -4/Factory | Lost 10 parts (1p3n3u3w) 13536 | -4/Factory | System corruption reached 10% 13550 | -4/Factory | Discovered new exit (range 14) 13632 | -4/Factory | Identified exit to Research 13830 | -4/Factory | Build established: Scavenger-Gunner 13862 | -4/Factory | Entered Upper Caves 13914 | -4/Upper Caves | Lost 4 parts (1n2u1w) 14895 | -4/Upper Caves | Lost 4 parts (1u3w) 14939 | -4/Upper Caves | Attracted the attention of an 0b10 checkpoint 14953 | -4/Upper Caves | Discovered new exit (range 9) 14987 | -4/Upper Caves | Entered another Upper Caves area 15045 | -4/Upper Caves | Encountered a Warlord checkpoint 15312 | -4/Upper Caves | Attracted the attention of an 0b10 outpost 15324 | -4/Upper Caves | Core integrity fell below 50% 15329 | -4/Upper Caves | System corruption reached 30% 15413 | -4/Upper Caves | Lost 17 parts (1p4n8u4w) 15469 | -4/Upper Caves | Lost 4 parts (1p1n1u1w) 15475 | -4/Upper Caves | Core integrity fell below 20% 15522 | -4/Upper Caves | Destroyed by G-67 Veteran with Plasma Rifle Last Messages --------------- 15447_ Found Imp. System Shield. 15447_ Found Mak. ECM Suite. 15447_ Found 66 Matter. 15447_ Found 39 Matter. 15448_ Acquired Imp. System Shield. 15463_ System corrupted: Heat flow error (+235). 15468_ Acquired Imp. System Shield. 15470_ Acquired Imp. Target Analyzer. 15476_ Attempting to rewire Y-64 Sentinel. 15476_ Y-64 Sentinel rewired. 15478_ Attempting to rewire G-67 Veteran. 15485_ System corrupted: Matter fused (-5). 15485_ Attempting to rewire G-67 Veteran. 15486_ Sentinel 7a destroyed. 15487_ Attempting to rewire G-67 Veteran. 15508_ System corrupted: Component data lost. 15513_ S-27 Virus destroyed. 15516_ Acquired Lgt. Nuclear Core. 15518_ S-27 Virus destroyed. 15521_ VTOL Module fries itself beyond repair. Map ----- +----------------------------------------------------+ | ??????????????????????????????## | | ???????????????????????###????## ####+### | | ??????????????????????## ##??# %#[ #??"# | | ??????????????????????# # #??# =%! # "# # | | ??????????????????????# #??#### [=* + "# # | | ??????????????????????# # #????## " "# # | | ??????????????????????# ##???# # "# # | | ???????????????????????# ##??# # # "# # | | ???????????????????????# ##?# ######## # | | ???????????????????????# ### | | ???????????????????????# # ##?## | | ???????????????????????# # #??? # | | ???????????????????????# # ###### #?? ? | | ???????????????????????## #????## #?? #? | | ?????????????????????##### # ##?????#### ##????? | | ????????????????????## ## ###?????????? #?????? | | ???????????????????## # #????????????# #?????? | | ???????????????????# ####?????????? #????? | | ???????????????????## # # ???????????####????? | | ????????????????????### # #????????????????????? | | ??????????????????????## g #????????????????????? | | ???????????????????????## ###???????????????????? | | ????????????????????????##g #???????????????????? | | ????????????????????????## # #???????????????????? | | ??????????????# #######l ##??????????????????? | | ?????????????# =%@ #??????????????????? | | ?????????? [s # #??????????????? | | ?????????? ###; ## # ####??????????????? | | ???????????###### ????####??# ##?????????????????? | | ?????????????????????????????##??????????????????? | | ?????????????????????????????????????????????????? | | ?????????????????????????????????????????????????? | | ?????????????????????????????????????????????????? | | ?????????????????????????????????????????????????? | | ?????????????????????????????????????????????????? | | ?????????????????????????????????????????????????? | | ?????????????????????????????????????????????????? | | ?????????????????????????????????????????????????? | | ?????????????????????????????????????????????????? | | ?????????????????????????????????????????????????? | | ?????????????????????????????????????????????????? | | ?????????????????????????????????????????????????? | | ?????????????????????????????????????????????????? | | ?????????????????????????????????????????????????? | | ?????????????????????????????????????????????????? | | ?????????????????????????????????????????????????? | | ?????????????????????????????????????????????????? | | ?????????????????????????????????????????????????? | | ?????????????????????????????????????????????????? | | ?????????????????????????????????????????????????? | +----------------------------------------------------+ Best States ------------- Heat Dissipation 157 Energy Generation 43 Energy Capacity 590 Matter Stores 300 Matter Capacity 300 Sight Range 16 Robot Scan Range 15 Terrain Scan Range 20 Terrain Scan Density 10 Jamming Range 14 Base Temperature (-) 200 Armor Coverage 450 Resistance: KI 20 Resistance: TH 50 Resistance: EX 20 Resistance: EM 45 Resistance: I 20 Resistance: S 20 Resistance: P 20 Core Shielding 20 Propulsion Shielding 33 Weapon Cycling 25 Phase Shifting 5 Evasion (%) 60 Targeting Accuracy 16 Target Analysis 6 Matter Filtering 30 Particle Charging 25 Salvage Targeting 4 Offensive Hacking 34 Defensive Hacking 12 Item Schematics ----------------- Propulsion Shielding | -9/Materials | Scanalyzed Core Shielding | -9/Materials | Scanalyzed VSS Leg | -9/Materials | Scanalyzed Carbon-fiber Leg | -9/Materials | Scanalyzed Lrg. Storage Unit | -9/Materials | Scanalyzed Autogun | -9/Materials | Scanalyzed Hcp. Matter Pod | -9/Materials | Scanalyzed Com. Battery | -9/Materials | Scanalyzed Signal Interpreter | -9/Materials | Scanalyzed Rocket Launcher | -9/Materials | Scanalyzed Terrain Scan Processor | -9/Materials | Extracted Med. Armor Plating | -9/Materials | Extracted Imp. Light Cannon | -9/Materials | Extracted Imp. Ion Engine | -9/Materials | Extracted Com. Wheel | -9/Materials | Extracted Heat Sink | -9/Materials | Extracted Adv. Beam Cannon | -9/Materials | Extracted Imp. Cooling System | -8/Storage | Hacked Titanium Leg | -8/Storage | Hacked Thermic Laser | -8/Storage | Hacked Lgt. Deuterium Engine | -8/Storage | Hacked Hvy. Laser | -8/Storage | Hacked Power Maul | -8/Storage | Hacked Adv. Signal Interpreter | -8/Storage | Hacked Trap Scanner | -8/Recycling | Hacked Hacking Suite | -8/Recycling | Hacked Imp. Light Armor Plating | -8/Recycling | Hacked Imp. Salvage Targeting Computer | -8/Recycling | Hacked Imp. System Restoration Module | -8/Recycling | Hacked Phase Gun | -6/Data Miner | Free Hvy. Gatling Laser | -6/Data Miner | Free Imp. Thermal Defense Suite | -6/Data Miner | Free Lgt. Regenerative Plating | -6/Data Miner | Free Combat Drone Bay | -6/Data Miner | Free Enh. Flexi-carbon Leg | -5/Factory | Scanalyzed Antimatter Reactor | -5/Factory | Scanalyzed Imp. Phase Shifter | -5/Hub_04(d) | Hacked Mic. Antimatter Reactor | -5/Hub_04(d) | Hacked Centrium Leg | -4/Factory | Scanalyzed Robot Schematics ------------------ G-34 Mercenary | -10/Materials | Hacked H-55 Commando | -8/Materials | Hacked B-60 Warrior | -6/Data Miner | Free G-50 Soldier | -6/Data Miner | Free A-15 Conveyor | -6/Data Miner | Free Y-54 Guardian | -6/Data Miner | Free Fabricated ------------ Nothing Alien Tech Used ----------------- None Achievements -------------- 404 Challenges ------------ None Game ------ Seed PhasingGravityArmor Manual? 0 Play Time 02:56:24 Cumulative 426.3 hours Start 2024.09.27 @ 13:37:59 End 2024.09.27 @ 20:51:35 Sessions 1 Manual Loads 0 Difficulty Adventurer Special Mode None Game No. 310 Rogue 63 Adventurer 221 Explorer 26 Win Type - Total 2 Types 2/0/0/0/0/0/0/0/0 Lore% 82 Gallery% 80 Achievement% 69 Wizard Run 0 Options --------- Layout 2 ASCII 0 Keyboard 0 Movement Mouse Keybinds 0 Fullscreen 0 Font 18/CogNarrow Map View 64x51 Zoom Use 0% Tactical HUD 1 Map Filters NONE Filters BRIGHTNESS(115)|SATURATION(100)|LOW_CONTRAST(0,16,30) Steam 1 RUN: 7b4140f6-9af4-4c6b-8473-50448ffe7300